{"text_format":"1","workbook":"xlsx","n_sheets":2,"sheets":["Лист1","Лист2"],"not_rendered":{"charts":0,"images":2,"macros":1,"external_links":0,"defined_names":1,"comments":0,"pivot_tables":0},"unopened":[],"bounds":{"document_bytes":16777216,"sheet_cells":100000,"rows_first":2000,"rows_last":500,"rows_between":2000,"halvings":0,"cell_chars":16384,"cell_head_chars":4096},"cells_cut":0,"cells_raw":0,"read":"whole","date_system":"1900"}

{"sheet":"Лист1","index":0,"n_rows":305,"n_cols":9,"rows_kept":305,"cut":false,"hidden":false,"merged":[]}
[null,null,null,null,null,null,"Код подразделения"]
[null,null,null,null,null,null,"00005133"]
[]
[]
["Дав с Цельным Орехом  100 гр. шоколад (9)"]
["Товар","Единица","Остаток","Витрина","Цена","Сумма","Код товара","Код МРЦ","Коэффициент"]
["Дав Молочный 100 гр. шоколад (10)","штука",null,null,57.6,{"$f":"(C7+D7)*E7","v":0},"00003452",null,1]
["Дав с Изюмом  100 гр. шоколад (10)","штука",null,null,57.6,0,"00003454",null,1]
["Дав с Цельным Орехом  100 гр. шоколад (9)","штука",null,null,57.6,0,"00003453",null,1]
["Дав Темный 100 гр. шоколад (10)","штука",null,null,57.6,0,"00003455",null,1]
["Давидофф  Рич Арома 100 гр.  ПАКЕТ (8)","штука",null,null,216.2,0,"00003341",null,1]
["Давидофф  Рич Арома 100 гр.  стекло (6)","штука",null,null,271.60000000000002,0,"00003339",null,1]
["Давидофф  Рич Арома ЗЕРНО 250 гр. (6)","штука",null,null,181.7,0,"00003332",null,1]
["Давидофф  Рич Арома МОЛОТЫЙ 250 гр. (12)","штука",null,null,181.7,0,"00003335",null,1]
["Давыдофф Вайт /Без МРЦ/","пачка",null,null,100,0,"00002896","00001269",1]
["Давыдофф Вайт /МРЦ 100.00/","пачка",null,null,100,0,"00002896","00001253",1]
["Давыдофф классик /Без МРЦ/","пачка",null,null,60,0,"00000137","00000335",1]
["Давыдофф классик /МРЦ 60.00/","пачка",null,null,60,0,"00000137","00000865",1]
["Добрый Абрикосовый нектар    1л (12)","штука",null,null,44.5,0,"00002242",null,1]
["Добрый Ананасовый нектар    1л (12)","штука",null,null,44.5,0,"00002225",null,1]
["Добрый Апельсиновый сок      1л (12)","штука",null,null,44.5,0,"00002224",null,1]
["Добрый Виноградный нектар    1л (12)","штука",null,null,44.5,0,"00002784",null,1]
["Добрый Морс из вишни   1л (12)","штука",null,null,44.5,0,"00002458",null,1]
["Добрый Мультифрукт нектар   1л (12)","штука",null,null,44.5,0,"00002223",null,1]
["Добрый Персиковый нектар   1л (12)","штука",null,null,44.5,0,"00001664",null,1]
["Добрый Томатный сок            1л (12)","штука",null,null,44.5,0,"00001808",null,1]
["Добрый Яблочный сок            1л (12)","штука",null,null,44.5,0,"00001663",null,1]
["Доктор Дизель  пиво    0,5л.ст/бут. (20)","штука",null,null,34,0,"00002723",null,1]
["Донской табак белый /Без МРЦ/","пачка",null,null,1,0,"00000155","00000515",1]
["Донской табак белый /МРЦ 11.50/","пачка",null,null,1,0,"00000155","00001018",1]
["Донской табак черный /Без МРЦ/","пачка",null,null,1,0,"00000159","00000519",1]
["Донской табак черный /МРЦ 11.50/","пачка",null,null,1,0,"00000159","00000985",1]
["Друг /Без МРЦ/","пачка",null,null,3,0,"00000160","00000442",1]
["Друг /МРЦ 8.10/","пачка",null,null,3,0,"00000160","00000689",1]
["Дукат  красный 10 (новый) /МРЦ 14.00/","пачка",null,null,16,0,"00003982","00001806",1]
["Дукат  красный 10 (новый) /МРЦ 16.00/","пачка",null,null,16,0,"00003982","00001818",1]
["Дукат серый 8 /МРЦ 14.00/","пачка",null,null,14,0,"00000162","00001498",1]
["Дукат синий 10 /Без МРЦ/","пачка",null,null,14,0,"00000163","00000228",1]
["Дукат синий 10 /МРЦ 10.50/","пачка",null,null,14,0,"00000163","00000811",1]
["Дукат синий 10 /МРЦ 11.50/","пачка",null,null,14,0,"00000163","00001104",1]
["Дукат синий 10 /МРЦ 13.00/","пачка",null,null,14,0,"00000163","00001383",1]
["Дукат синий 10 /МРЦ 14.00/","пачка",null,null,14,0,"00000163","00001488",1]
["Жардин Гватемала 95 гр.  стекло (15)","штука",null,null,128.69999999999999,0,"00003358",null,1]
["Жардин Кения 95 гр.  стекло (15)","штука",null,null,135,0,"00003359",null,1]
["Жардин Колумбия 95 гр.  стекло (15)","штука",null,null,133,0,"00003353",null,1]
["Жардин Колумбия ЗЕРНО  250 гр. (15)","штука",null,null,120.7,0,"00003354",null,1]
["Жардин Колумбия МОЛОТЫЙ  125 гр. (36)","штука",null,null,67.599999999999994,0,"00003355",null,1]
["Казанова  № 4  в ассортим. презерватив (30)","штука",null,null,1,0,"00002207",null,1]
["Кальмар сушёный ФЛЭК 18гр (60)","штука",null,null,16,0,"00002054",null,1]
["Кальмар Сушёный Флэк 40гр (35)","штука",null,null,35,0,"00002478",null,1]
["Канди Принцесса Медиум BOP 1А Орими листовой 200г (24)","штука",null,null,9,0,"00001060",null,1]
["Канди Принцесса Медиум BOP 1А Орими листовой 250г (24)","штука",null,null,41.7,0,"00001777",null,1]
["Канди Принцесса РОТ  30*2 г пакет б/я (80)","штука",null,null,15.5,0,"00001108",null,1]
["Канди Принцесса РОТ  50*2 г пакет б/я (48)","штука",null,null,25.5,0,"00001124",null,1]
["Капитан Блэк  Свит  Чери сигарилы (Sweet Cheri se)","пачка",null,null,70,0,"00000911",null,1]
["Капитан Блэк  Свит Лайтс сигарилы (White Crema)","пачка",null,null,70,0,"00000910",null,1]
["Капитан Блэк  Фильтр    сигарилы (Classik)","пачка",null,null,70,0,"00000913",null,1]
["Капри Азурро В.А.Т. /Без МРЦ/","пачка",null,null,25,0,"00003064","00001749",1]
["Капри Азурро В.А.Т. /МРЦ 25.00/","пачка",null,null,25,0,"00003064","00001504",1]
["Капри Россо В.А.Т. /Без МРЦ/","пачка",null,null,25,0,"00003063","00001750",1]
["Капри Россо В.А.Т. /МРЦ 25.00/","пачка",null,null,25,0,"00003063","00001503",1]
["Карлсберг пиво  жест.банка  0,5л. алк. 5% (24)","штука",null,null,38.5,0,"00001439",null,1]
["Карлсберг пиво  жест.банка  1,0л. алк. 5% (12)","штука",null,null,72,0,"00003031",null,1]
["Карлсберг пиво  ст./бут. 0,5л.алк. 5% (20)","штука",null,null,40.5,0,"00001438",null,1]
["Карты игральные 12бл*10п","штука",null,null,16,0,"00000233",null,1]
["Кафе Крим          сигариллы","пачка",null,null,1,0,"00002822",null,1]
["Кафе Крим Ароме  сигариллы","пачка",null,null,1,0,"00002823",null,1]
["Кафе Крим Блю  сигариллы","пачка",null,null,1,0,"00002820",null,1]
["Кафе Крим Нуар  сигариллы","пачка",null,null,1,0,"00002821",null,1]
["Кафе Крим Фильтр Тип  сигариллы с мундштуком","пачка",null,null,1,0,"00001303",null,1]
["Кемел  Супер Легкие /МРЦ 38.00/","пачка",null,null,38,{"$f":"(C71+D71)*E71","v":0},"00000990","00001648",1]
["Кемел бокс /Без МРЦ/","пачка",null,null,38,0,"00000237","00000171",1]
["Кемел бокс /МРЦ 30.00/","пачка",null,null,38,0,"00000237","00000747",1]
["Кисс Суперслим Яблоко /МРЦ 24.00/","пачка",null,null,24,0,"00002644","00001729",1]
["КИТ КАТ  46 гр. шоколадный батончик (24) (192)","штука",null,null,16,0,"00002328",null,1]
["Классический для детей Орбит пластинки (20)","штука",null,null,13.2,0,"00001200",null,1]
["Кольца Кальмара подкопчёные Флэк  40гр (40)","штука",null,null,39,0,"00002479",null,1]
["Контекс № 3 Black Rose (черный цвет) (12)","",null,null,1,0,"00002704",null,1]
["Контекс № 3 Гусарские в ассортим. презерватив (12)","",null,null,34,0,"00001175",null,1]
["Контекс № 3 Гусарские Особо Тонкие презерватив (12)","",null,null,38,0,"00002989",null,1]
["Контекс № 3 Гусарские с Точками и Ребрами презерватив (12)","",null,null,38,0,"00002988",null,1]
["Контекс № 3 Классические презерватив (12)","пачка",null,null,49,0,"00003433",null,1]
["Контекс № 3 Особо тонкие презерватив (12)","пачка",null,null,49,0,"00003435",null,1]
["Контекс № 3 с Точками презерватив (12)","пачка",null,null,49,0,"00003434",null,1]
["Континент легкие 5 суперслим /Без МРЦ/","пачка",null,null,21,0,"00003846","00001794",1]
["Континент легкие 5 суперслим /МРЦ 21.00/","пачка",null,null,21,0,"00003846","00001780",1]
["Континент легкие 8 /Без МРЦ/","пачка",null,null,20,0,"00003847","00001795",1]
["Континент легкие 8 /МРЦ 20.00/","пачка",null,null,20,0,"00003847","00001781",1]
["Кофейный напиток Цикорий Здоровье  100 гр. (12)","штука",null,null,77,0,"00003903",null,1]
["Кофейный напиток Цикорий Здоровье с брусникой 100 гр. (12)","штука",null,null,91,0,"00003983",null,1]
["Кофейный напиток Цикорий Здоровье с лимоном 100 гр. (12)","штука",null,null,91,0,"00003984",null,1]
["Кофейный напиток Цикорий Здоровье с малиной 100 гр. (12)","штука",null,null,91,0,"00003985",null,1]
["Крекер Французский с кунжутом  185гр. (24)","штука",null,null,19,0,"00002974",null,1]
["Крекер Цифры  250гр. (10)","штука",null,null,1,0,"00002683",null,1]
["Крикет Стандарт","штука",null,null,14,0,"00000266",null,1]
["Кронверк  бокс Нево Табак /Без МРЦ/","пачка",null,null,5,0,"00002347","00000429",1]
["Кронверк  бокс Нево Табак /МРЦ 8.20/","пачка",null,null,5,0,"00002347","00000687",1]
["Кронверк Лёгкие  бокс  Нево Табак /Без МРЦ/","пачка",null,null,5,0,"00002348","00000430",1]
["Кронверк Лёгкие  бокс  Нево Табак /МРЦ 8.20/","пачка",null,null,5,0]
["Лейс 28гр. ЗЕЛЁНЫЙ ЛУК Чипсы (48)","штука",null,null,12,0]
["Лейс 28гр. ЗОЛОТИСТЫЕ НАТУРАЛЬНЫЕ Чипсы (48)","штука",null,null,1,0]
["Лейс 28гр. Красная Икра Чипсы (48)","штука",null,null,11,0]
["Лейс 85гр. Макс СМЕТАНА и ЛУК Чипсы (16)","штука",null,null,30,0]
["Лейс 85гр. СМЕТАНА ЗЕЛЕНЬ  Чипсы (16)","штука",null,null,30,0]
["Лейс 85гр. СЫР Чипсы (16)","штука",null,null,30,0]
["Лейс 85гр.ЗЕЛЁНЫЙ ЛУК Чипсы (16)","штука",null,null,30,0]
["Ленинград /МРЦ 8.50/","пачка",null,null,11,0]
["Ленинград Легкие /Без МРЦ/","пачка",null,null,3,0]
["Лесные ягодыOrbit   леденцы без сахара пачка (8)","штука",null,null,23,0]
["Лимон и мята Orbit   леденцы без сахара пачка (8)","штука",null,null,22,0]
["Липтон   Юнилевер разовый 25*2 гр.пакет с/я (24)","штука",null,null,53,0]
["Липтон   Юнилевер разовый 50*2 гр.пакет с/я + кружка (6)","штука",null,null,177.5,0]
["Липтон  Mild Ceylon пирамидки 20*1,8 гр.пакет с/я (12)","штука",null,null,72,0]
["Липтон  Red Tea пирамидки 20*2 гр.пакет с/я (12)","штука",null,null,60,0]
["Липтон чай ОРТ  100 гр. (40)","штука",null,null,49.2,0]
["Лисма Ароматный цейл. 25*2 г пакет с/я (27)","штука",null,null,27,0]
["Лисма Бодрящий инд. 25*2 г пакет с/я (27)","штука",null,null,21,0]
["Лисма Насыщенный  100*2 г пакет с/я (6)","штука",null,null,75,0]
["ЛМ легкие /МРЦ 23.00/","пачка",null,null,25,0]
["ЛМ легкие /МРЦ 25.00/","пачка",null,null,25,0]
["Максим легкие бокс /Без МРЦ/","пачка",null,null,11.3,0]
["Максим легкие бокс /МРЦ 11.30/","пачка",null,null,11.3,0]
["Максим легкие бокс /МРЦ 12.30/","пачка",null,null,11.3,0]
["Максим легкие бокс /МРЦ 9.30/","пачка",null,null,11.3,0]
["Максим легкие бокс /МРЦ 9.50/","пачка",null,null,11.3,0]
["Максим легкие бокс /МРЦ 9.80/","пачка",null,null,11.3,0]
["МакЧай Лимон (20)","штука",null,null,4.5,0]
["МакШоколад  20 шт (500)","штука",null,null,5,0]
["Мальборо /Без МРЦ/","пачка",null,null,38.9,0]
["Мальборо /МРЦ 35.00/","пачка",null,null,38.9,0]
["Мальборо Супер слим  Голд Эдж /МРЦ 47.00/","пачка",null,null,43.5,0]
["Мальборо ультра легкие /Без МРЦ/","пачка",null,null,38.9,0]
["Мальборо ультра легкие /МРЦ 35.00/","пачка",null,null,38.9,0]
["Мальборо ультра легкие /МРЦ 38.00/","пачка",null,null,38.9,0]
["Мальборо ультра легкие /МРЦ 40.00/","пачка",null,null,38.9,{"$f":"(C135+D135)*E135","v":0}]
["Мальборо ультра легкие /МРЦ 42.00/","пачка",null,null,38.9,0]
["Марс 50 гр. шоколадный батончик (36)","штука",null,null,19,0]
["Марс МАКС 73 гр. шоколадный батончик (24)","штука",null,null,27.6,0]
["Марти Рэй вкус  Белый виноград ж/б 0,5л.алк.8% пиво специальное (24)","штука",null,null,38,0]
["Марти Рэй вкус  Виноград ж/б 0,5л.алк.8% пиво специальное (24)","штука",null,null,38,0]
["Муррати Амбасадор Голд Слимс /МРЦ 23.00/","пачка",null,null,29,0]
["Муррати Амбасадор Сильвер  Слимс /МРЦ 27.00/","пачка",null,null,29,0]
["Муррати супер легкие /МРЦ 27.00/","пачка",null,null,27,0]
["Натуральная мята Orbit   леденцы без сахара пачка (8)","штука",null,null,22,0]
["Наша Прима бокс легкая /МРЦ 8.30/","пачка",null,null,12,0]
["Наша Прима бокс легкая /МРЦ 8.50/","пачка",null,null,12,0]
["Наша Прима бокс легкая /МРЦ 9.50/","пачка",null,null,12,0]
["Неваляшка №3 FAM в ассортименте презерватив (48)","",null,null,5,0]
["Неваляшка №3 Волшебная Палочка FAM презерватив (48)","",null,null,5,0]
["Неваляшка №3 Кайф FAM презерватив (48)","",null,null,5,0]
["Неваляшка №3 Ночной Хранитель FAM презерватив (48)","",null,null,5,0]
["Неваляшка №3 Шапка Невидимка FAM презерватив (48)","",null,null,5,0]
["Невские /Без МРЦ/","пачка",null,null,2,0]
["Невские /МРЦ 7.60/","пачка",null,null,2,0]
["Нэкст  супер легкие /МРЦ 13.50/","пачка",null,null,13.5,0]
["Нэкст  супер легкие /МРЦ 14.50/","пачка",null,null,13.5,0]
["Нэкст /Без МРЦ/","пачка",null,null,13.5,0]
["Нэкст /МРЦ 10.00/","пачка",null,null,13.5,0]
["Нэкст /МРЦ 12.00/","пачка",null,null,13.5,0]
["Нэкст /МРЦ 13.50/","пачка",null,null,13.5,0]
["Нэкст /МРЦ 14.50/","пачка",null,null,13.5,0]
["Нэкст Rose Слим Супер Легкие /Без МРЦ/","пачка",null,null,16.2,0]
["Опал  soft  г. Сочи /Без МРЦ/","пачка",null,null,1,0]
["Опал м/у  г.Омск /Без МРЦ/","пачка",null,null,9,0]
["Опал м/у  г.Омск /МРЦ 8.00/","пачка",null,null,9,0]
["Опал м/у  г.Омск /МРЦ 8.50/","пачка",null,null,9,0]
["Опал м/у  г.Омск /МРЦ 9.00/","пачка",null,null,9,0]
["Оптима /Без МРЦ/","пачка",null,null,11.6,0]
["Оптима /МРЦ 9.50/","пачка",null,null,11.6,0]
["Оптима легкая /Без МРЦ/","пачка",null,null,11.6,0]
["Оптима легкая /МРЦ 10.00/","пачка",null,null,11.6,0]
["Оптима легкая /МРЦ 11.50/","пачка",null,null,11.6,0]
["Оптима легкая /МРЦ 12.50/","пачка",null,null,11.6,0]
["Парламент Экстра легкие /МРЦ 53.00/","пачка",null,null,57,0]
["Парламент Экстра легкие /МРЦ 55.00/","пачка",null,null,57,0]
["Парламент Экстра легкие /МРЦ 57.00/","пачка",null,null,57,0]
["Пеле   100 гр.  ж/б (24)","штука",null,null,69,0]
["Пеле   50 гр.  ж/б (24)","штука",null,null,46,0]
["Пеле  200 гр.  ж/б (24)","штука",null,null,130.9,0]
["Петр 1 легкие \"8\" /МРЦ 17.00/","пачка",null,null,18.399999999999999,0]
["Петр 1 легкие \"8\" /МРЦ 18.00/","пачка",null,null,18.399999999999999,0]
["Петр 1 легкие \"8\" /МРЦ 20.00/","пачка",null,null,18.399999999999999,0]
["печенье Вафельный Сэндвич с шок. и фунд. 170 гр. (24)","штука",null,null,30,0]
["печенье Яшкино Вареная сгущенка 245 гр. (15)","штука",null,null,20,0]
["печенье Яшкино Зебра с орехом в шоколадной глазури 150 гр. (37)","штука",null,null,18,0]
["печенье Яшкино с Какао 230 гр. (24)","штука",null,null,20,0]
["печенье Яшкино Сливочное 235 гр. (23)","штука",null,null,20,0]
["печенье Яшкино Сливочный крем 182 гр. (20)","штука",null,null,21,0]
["Пиквик Английский завтрак   25*1,75 гр.пакет с/я (12)","штука",null,null,59.5,0]
["Пиквик Ассорти Красный 20*1,5 гр.пакет с/я (12)","штука",null,null,44.1,0]
["Пиквик Ассорти Розовый 20*1,5 гр.пакет с/я (12)","штука",null,null,45,0]
["Пиквик Зеленый чай Ассорти 25*2 гр.пакет с/я (12)","штука",null,null,69,0]
["Пэлл Мэлл  Ультима Легкие 1 /МРЦ 23.00/","пачка",null,null,1,0]
["Пэлл Мэлл Специальные Легкие 6 /Без МРЦ/","пачка",null,null,23,0]
["Пэлл Мэлл Специальные Легкие 6 /МРЦ 21.00/","пачка",null,null,23,0]
["Пэлл Мэлл Специальные Легкие 6 /МРЦ 23.00/","пачка",null,null,23,0]
["Пюре Картофельное Курица Роллтон 40гр. (24)","штука",null,null,17,0]
["Пюре Картофельное Мясной Роллтон 40гр. (24)","штука",null,null,17,0]
["Р-1  Ванити Арома Супер Слим Лайн /Без МРЦ/","пачка",null,null,38,{"$f":"(C199+D199)*E199","v":0}]
["Р-1  Ванити Арома Супер Слим Лайн /МРЦ 38.00/","пачка",null,null,38,0]
["Р-1  Флэ Арома Супер Слим Лайн /МРЦ 38.00/","пачка",null,null,38,0]
["Р-1  Фреш Супер Слим /Без МРЦ/","пачка",null,null,42,0]
["Ричмонд Премиум лайтс 8 /МРЦ 62.00/","пачка",null,null,60,0]
["Ричмонд Суперслим Черри /Без МРЦ/","пачка",null,null,62,0]
["Ричмонд Суперслим Черри /МРЦ 62.00/","пачка",null,null,62,0]
["Ричмонд Суперслим Эйр 4 /Без МРЦ/","пачка",null,null,62,0]
["Ричмонд Суперслим Эйр 4 /МРЦ 62.00/","пачка",null,null,62,0]
["Ричмонд Черри /Без МРЦ/","пачка",null,null,60,0]
["Ричмонд Черри Лайтс /Без МРЦ/","пачка",null,null,60,0]
["Ричмонд Черри Лайтс /МРЦ 60.00/","пачка",null,null,60,0]
["Ричмонд Черри Лайтс /МРЦ 62.00/","пачка",null,null,60,0]
["Ричмонд Эмпайер Эдишн /Без МРЦ/","пачка",null,null,150,0]
["Ричмонд Эмпайер Эдишн /МРЦ 160.00/","пачка",null,null,150,0]
["Родопи м/у  г.Омск /Без МРЦ/","пачка",null,null,9,0]
["Родопи м/у  г.Омск /МРЦ 8.00/","пачка",null,null,9,0]
["Родопи м/у  г.Омск /МРЦ 8.50/","пачка",null,null,9,0]
["Родопи м/у  г.Омск /МРЦ 9.00/","пачка",null,null,9,0]
["Рондо Арбуз/мята 21,4гр. конфеты без сахара (15*15)","штука",null,null,18.5,0]
["Рондо Лимон 30гр. конфеты мятные (14*16)","штука",null,null,13.2,0]
["Рондо Малина 30гр. конфеты мятные (14*16)","штука",null,null,13.2,0]
["Рондо Мята 30гр. конфеты мятные (14*16)","штука",null,null,13.2,0]
["Ронсон /Без МРЦ/","пачка",null,null,12.5,0]
["Ронсон /МРЦ 10.00/","пачка",null,null,12.5,0]
["Ронсон Лёгкий /МРЦ 8.80/","пачка",null,null,12.5,0]
["Ронсон Лёгкий /МРЦ 9.00/","пачка",null,null,12.5,0]
["Российский Темный  100г шоколад (20)","штука",null,null,32,0]
["Ротманс КС /МРЦ 29.00/","пачка",null,null,32,0]
["Ротманс КС /МРЦ 30.00/","пачка",null,null,32,0]
["семечки \"Золотой орех XL\" вакуум 160гр (25)","штука",null,null,15,0]
["семечки \"Золотой орех\" 100гр (50)","штука",null,null,15.1,0]
["семечки \"Золотой орех\" 200гр (25)","штука",null,null,30.1,0]
["семечки \"Золотой орех\" вакуум 140гр (25)","штука",null,null,21.2,0]
["семечки \"Золотой орех\" вакуум 150гр (25)","штука",null,null,21.2,0]
["Сенатор  Нанопауэр Вайнегрэйп (синие) /Без МРЦ/","пачка",null,null,50,0]
["Сенатор  Нанопауэр Ориджинал Пайп Тобакко (красные) /МРЦ 50.00/","пачка",null,null,50,0]
["Сенатор Вайнегрэйп (синие) /Без МРЦ/","пачка",null,null,105,0]
["Сенатор Вайнегрэйп (синие) /МРЦ 105.00/","пачка",null,null,105,0]
["Сенатор Вайнегрэйп (синие) /МРЦ 110.00/","пачка",null,null,105,0]
["Сенатор Гранд Вирджиния (черные) /Без МРЦ/","пачка",null,null,105,0]
["Сенатор Гранд Вирджиния (черные) /МРЦ 105.00/","пачка",null,null,105,0]
["Сенатор Гранд Вирджиния (черные) /МРЦ 110.00/","пачка",null,null,105,0]
["Сенатор Ориджинал Пайп Тобакко (красные) /Без МРЦ/","пачка",null,null,105,0]
["Сенатор Ориджинал Пайп Тобакко (красные) /МРЦ 105.00/","пачка",null,null,105,0]
["Сенатор Ориджинал Пайп Тобакко (красные) /МРЦ 110.00/","пачка",null,null,105,0]
["Сибирская  Корона Золотистое  пиво   0,5л. ст.бут. (20)","штука",null,null,28.5,0]
["Сибирская  Корона Классическое  пиво 0,5л. ст.бут. (20)","штука",null,null,24,0]
["Сибирский Бочонок  Классическое пиво  1,5л. ПЭТ (9)","штука",null,null,44.5,0]
["Сибирский Бочонок  Крепкое пиво  1,5л. ПЭТ (9)","штука",null,null,53.5,0]
["Сико в ассортим. презерватив (24)","",null,null,1,0]
["СИМ карта НОВАЯ Теле-2 CITY 70","штука",null,null,70,0]
["Сиропчик  Апельсин   газ.вода       1,5л  ПЭТ (6)","штука",null,null,13,0]
["Сиропчик  Байкал   газ.вода       1,5л  ПЭТ (6)","штука",null,null,16,0]
["Сиропчик  Буратино   газ.вода       1,5л  ПЭТ (6)","штука",null,null,13,0]
["Сиропчик  Дюшес   газ.вода       1,5л  ПЭТ (6)","штука",null,null,13,0]
["Сиропчик  Колокольчик   газ.вода       1,5л  ПЭТ (6)","штука",null,null,13,0]
["Старопрамен пиво       0,5л. ж/банка алк. 4% (24)","штука",null,null,40,0]
["Старопрамен пиво       0,5л. ст.бут. алк. 4% (20)","штука",null,null,40,0]
["Старый Мельник пиво  0,5л.жест.банка алк.4,6% (24)","штука",null,null,29,0]
["Старый Мельник пиво  0,5л.ст.бут. алк.4,6% (20)","штука",null,null,29,0]
["Стелла Артуа пиво       0,5л. ст.бут.алк. 5% (20)","штука",null,null,45,0]
["СТК 100","штука",null,null,100,0]
["Страсть  № 3  в ассортим. презерватив (24)","штука",null,null,14,0]
["Стюардесса м/у  г.Омск /МРЦ 8.50/","пачка",null,null,9,{"$f":"(C263+D263)*E263","v":0}]
["Стюардесса м/у  г.Омск /МРЦ 9.00/","пачка",null,null,9,0]
["Супер-Сникерс 100 гр. шоколадный батончик (32)","штука",null,null,27.8,0]
["Сыр копченый Сырцееды 30гр (40)","штука",null,null,22.1,0]
["Твикс 58 гр. шоколадный батончик (40)","штука",null,null,19,0]
["Твикс Экстра 82 гр. шоколадный батончик (24)","штука",null,null,27.6,0]
["Тесс Style зеленый чай 100г. (14)","штука",null,null,36.1,0]
["Тесс Style зеленый чай 25*2г. пакет с ярлыком (10)","штука",null,null,40,0]
["Тесс Sunrise черный чай 100г. (15)","штука",null,null,36.1,0]
["Тесс Sunrise черный чай 25*2г. пакет с ярлыком (10)","штука",null,null,40,0]
["Тинькофф Т пиво       0,5л. жест.банка алк.4% (24)","штука",null,null,32,0]
["Тинькофф Т пиво       0,5л. ст.бут.алк. 4% (20)","штука",null,null,32,0]
["Тренд /Без МРЦ/","пачка",null,null,10,0]
["Тренд /МРЦ 10.00/","пачка",null,null,10,0]
["Тренд /МРЦ 9.50/","пачка",null,null,10,0]
["Тренд Лёгкие /Без МРЦ/","пачка",null,null,10,0]
["Тренд Лёгкие /МРЦ 10.00/","пачка",null,null,10,0]
["Тренд Лёгкие /МРЦ 9.50/","пачка",null,null,10,0]
["Тройка бокс Дукат /Без МРЦ/","пачка",null,null,14,0]
["Тройка бокс Дукат /МРЦ 10.00/","пачка",null,null,14,0]
["Чибо Майлд МОЛОТЫЙ  250 гр. (12)","штука",null,null,104.4,0]
["Чибо Мокка   47,5 гр. стекло  новая банка (12)","штука",null,null,10,0]
["Эклипс Ледяное яблоко подушечки (30)","штука",null,null,16.3,0]
["Эклипс Ледяной мохито подушечки (30)","штука",null,null,16.3,0]
["Эклипс Лимонная свежесть жеват. рез. подушечки (30)","штука",null,null,15,0]
["Эклипс Мята  драже (18)","штука",null,null,17.5,0]
["Эклипс Перечная Мята  драже (18)","штука",null,null,18,0]
["Элемент питания Космос  LR 03  BL*2 (24)","штука",null,null,1,0]
["Элемент питания Космос  LR 06  BL*2 (24)","штука",null,null,1,0]
["Элит Платинум- кристаллы 100 гр. стекло (12)","штука",null,null,152.5,0]
["Элит Платинум- кристаллы 200 гр. стекло (6)","штука",null,null,272,0]
["Ява Экспорт Графит  box /МРЦ 22.00/","пачка",null,null,26,0]
["Ява Экспорт Графит  box /МРЦ 24.00/","пачка",null,null,26,0]
["Ява Экспорт Графит  box /МРЦ 26.00/","пачка",null,null,26,0]
["Ява Экспорт Кристаллит  box /Без МРЦ/","пачка",null,null,26,0]
["Ява Экспорт Кристаллит  box /МРЦ 20.00/","пачка",null,null,26,0]
["Ява Экспорт Кристаллит  box /МРЦ 22.00/","пачка",null,null,26,0]
["Ява Экспорт Кристаллит  box /МРЦ 24.00/","пачка",null,null,26,0]
["Ява Экспорт Кристаллит  box /МРЦ 26.00/","пачка",null,null,26,0]
["Якобс Карте Нуар 190гр. раств. пакет (6)","штука",null,null,447.8,0]
["Якобс Карте Нуар 95гр. раств. пакет (12)","штука",null,null,246.3,0]
["Якобс Карте Нуар 95гр. раств. стекло (12)","штука",null,null,272.89999999999998,0]
["Якобс ПРОМО Карте Нуар 95гр. раств. стекло (6)","штука",null,null,308,0]

{"sheet":"Лист2","index":1,"n_rows":9,"n_cols":2,"rows_kept":9,"cut":false,"hidden":false,"merged":[]}
[null,20000]
[]
[]
[]
[]
[]
[]
[null,"время"]
[null,8.59375E-2]